bitfinex-derivatives/quotes_ETHF0:USTF0_20240920
["timestamp","ask_amount","ask_price","bid_price","bid_amount"]
[1726837769961,3.60074,2544.6,2544.4,3.07]
[1726837770164,3.2078,2544.6,2544.4,3.07]
[1726837770460,3.2078,2544.6,2544.4,3.46295]
[1726837770758,0.3805,2544.7,2544.4,3.46295]
[1726837770962,0.3805,2544.7,2544.6,3.07]
[1726837771159,3.60068,2544.9,2544.6,3.07]
[1726837771764,3.2078,2544.9,2544.6,3.07]
[1726837772353,0.7715,2544.8,2544.6,3.07]
[1726837772654,0.3786,2544.8,2544.6,3.07]
[1726837772853,3.2078,2544.9,2544.6,3.46292]
[1726837773049,3.60068,2544.9,2544.6,3.46292]
[1726837773259,3.2078,2544.9,2544.6,3.07]
[1726837773565,0.3929,2544.8,2544.6,3.07]
[1726837773863,3.2078,2544.9,2544.6,3.07]
[1726837774055,3.2078,2544.9,2544.6,3.46292]
[1726837774254,3.2078,2544.9,2544.7,0.76921]
[1726837774454,3.2078,2544.9,2544.7,0.3763]
[1726837774656,3.2078,2544.9,2544.7,0.76921]
[1726837774853,3.60068,2544.9,2544.7,0.3763]
[1726837775049,3.60068,2544.9,2543.9,0.39302]
[1726837775050,0.98228,2544.7,2543.9,0.39302]
[1726837775256,3.2078,2544.0,2543.2,0.198]
[1726837775461,0.3979,2543.9,2543.4,3.4463]
[1726837775664,0.3979,2543.9,2543.8,3.07]
[1726837775864,3.2078,2544.0,2543.8,3.07]
[1726837776172,3.2078,2544.0,2543.6,0.39307]
[1726837776173,3.2078,2544.0,2543.6,0.39308]
[1726837776457,3.2078,2543.7,2543.4,0.3763]
[1726837776861,3.2078,2543.7,2543.4,0.76941]
[1726837777056,3.2078,2543.7,2543.4,0.3763]
[1726837777958,3.2078,2543.7,2543.3,0.3837]
[1726837778159,3.60092,2543.4,2542.8,0.3952]
[1726837778363,3.60092,2543.4,2542.6,4.7905]
[1726837778364,3.2078,2542.9,2542.6,4.407]
[1726837778555,0.3795,2543.6,2542.7,4.96531]
[1726837778556,3.2078,2543.2,2542.7,4.96531]
[1726837778861,3.2078,2543.2,2542.7,4.5721]
[1726837779257,3.2078,2543.2,2542.7,0.7921]
[1726837780160,3.2078,2543.2,2542.9,3.78]
[1726837780468,3.2078,2543.5,2543.0,0.39316]
[1726837780665,3.2078,2543.5,2542.9,3.78]
[1726837780862,4.0062,2544.0,2543.2,3.78]
[1726837781161,4.79482,2544.0,2543.3,0.7792]
[1726837781356,4.4018,2544.0,2543.3,0.7792]
[1726837781758,4.4018,2544.0,2543.4,0.39311]
[1726837781961,4.4018,2544.0,2543.3,1.17232]
[1726837782163,4.4018,2544.0,2543.3,0.7792]
[1726837782359,3.2078,2544.0,2543.5,3.78]
[1726837782566,3.2078,2544.0,2543.5,4.17309]
[1726837782770,3.2078,2544.0,2543.6,0.39308]
[1726837783067,3.2078,2544.0,2543.5,4.17309]
[1726837783463,3.2078,2544.0,2543.6,0.39307]
[1726837783767,3.2078,2544.0,2543.5,3.78]
[1726837783960,3.2078,2544.0,2543.3,3.987]
[1726837784156,3.2078,2544.0,2543.3,7.767]
[1726837784457,3.2078,2544.0,2543.6,0.39308]
[1726837784663,3.2078,2544.0,2543.7,0.39306]
[1726837785166,3.2078,2544.0,2543.8,0.78245]
[1726837785366,3.2078,2544.3,2544.1,0.39299]
[1726837785666,0.3977,2544.5,2543.9,4.1574]
[1726837785871,3.2078,2544.6,2544.2,3.78]
[1726837786053,3.9776,2544.9,2544.4,0.39294]
[1726837786256,3.9776,2544.9,2544.5,0.39293]
[1726837786457,3.9776,2544.9,2544.3,0.3894]
[1726837786458,3.9776,2544.9,2544.4,0.39295]
[1726837786861,3.6044,2544.9,2544.6,0.39292]
[1726837787765,3.6044,2544.9,2544.3,0.3894]
[1726837788067,3.2078,2544.6,2544.3,0.78236]
[1726837788269,3.2078,2544.6,2544.3,0.3894]
[1726837788664,3.2078,2544.6,2544.4,0.39295]
[1726837788860,3.2078,2544.6,2544.5,0.39294]
[1726837789067,3.2078,2544.6,2544.4,0.39295]
[1726837790167,3.2078,2544.6,2544.2,0.39299]
[1726837790473,3.2078,2544.6,2544.0,7.394]
[1726837790885,3.2078,2544.6,2544.2,0.39297]
[1726837791170,3.2078,2544.6,2544.0,7.394]
[1726837791171,3.2078,2544.6,2544.3,0.39296]
[1726837791377,3.2078,2544.6,2544.0,7.394]
[1726837791570,3.2078,2544.6,2544.3,0.39296]
[1726837791773,3.2078,2544.6,2544.1,0.39299]
[1726837792066,3.60074,2544.6,2544.1,0.39299]
[1726837792464,0.39295,2544.5,2544.1,0.393]
[1726837792671,3.60073,2544.6,2544.2,0.39298]
[1726837792967,3.2078,2544.6,2544.0,4.1862]
[1726837793164,3.2078,2544.6,2544.3,0.39297]
[1726837793573,3.2078,2544.6,2544.5,0.39294]
[1726837793759,3.2078,2544.6,2544.3,0.39296]
[1726837794569,3.2078,2544.6,2544.3,0.39297]
[1726837795667,3.2078,2544.6,2544.0,4.1862]
[1726837795866,3.2078,2544.6,2544.3,0.39297]
[1726837796070,3.2078,2544.6,2544.4,0.39295]
[1726837796279,3.2078,2544.6,2544.4,0.39296]
[1726837796670,3.2078,2544.6,2544.3,0.39296]
[1726837797381,3.60073,2544.6,2544.2,0.39298]
[1726837797768,3.60073,2544.6,2544.0,4.1862]
[1726837797769,0.39295,2544.5,2544.1,0.393]
[1726837798069,3.60073,2544.6,2544.2,0.39298]
[1726837798470,3.2078,2544.6,2544.0,0.4062]
[1726837798773,3.60073,2544.6,2544.2,0.39299]
[1726837798975,0.39295,2544.5,2544.1,0.39299]
[1726837799174,0.39297,2544.3,2544.0,0.4062]
[1726837799472,0.80546,2544.4,2544.0,0.79921]
[1726837799689,3.9613,2544.3,2543.4,3.2078]
[1726837799873,3.2078,2543.9,2543.4,3.2078]
[1726837800072,0.3806,2543.8,2543.4,3.2078]
[1726837800274,0.3806,2543.8,2543.6,0.39308]
[1726837800674,0.3806,2543.8,2543.4,3.2078]
[1726837800871,3.2078,2543.9,2543.4,3.2078]
[1726837801079,0.7535,2544.3,2543.8,0.39304]
[1726837801080,3.5884,2544.2,2543.8,0.39304]
[1726837801277,3.5884,2544.2,2543.6,3.78]
[1726837801888,3.5884,2544.2,2543.9,0.39302]
[1726837802182,3.5884,2544.2,2543.7,0.7764]
[1726837802375,3.5884,2544.2,2543.8,0.39304]
[1726837802576,3.5884,2544.2,2543.7,0.377]
[1726837802775,3.9814,2544.2,2543.7,0.377]
[1726837803078,3.5884,2544.2,2543.7,0.377]
[1726837803474,3.5884,2544.2,2544.1,0.393]
[1726837803671,3.2078,2544.5,2544.1,0.39299]
[1726837803882,3.2078,2544.5,2544.2,0.39297]
[1726837804679,3.2078,2544.5,2544.0,0.3871]
[1726837804876,3.2078,2544.5,2544.2,0.39298]
[1726837806387,3.2078,2544.5,2544.0,0.3871]
[1726837806578,3.2078,2544.5,2544.2,0.39298]
[1726837806884,3.60074,2544.5,2544.1,0.39299]
[1726837807276,3.60074,2544.5,2544.0,0.78011]
[1726837807277,0.39297,2544.4,2544.0,0.78011]
[1726837807473,3.2078,2544.2,2543.3,4.23489513]
[1726837807687,3.2078,2543.6,2543.2,0.7826]
[1726837807878,3.2078,2543.6,2543.3,3.07]
[1726837807879,0.4128,2543.5,2543.3,3.07]
[1726837808080,0.4128,2543.5,2543.0,3.07]
[1726837808081,1.79136,2543.5,2543.0,3.07]
[1726837808390,0.8086,2543.5,2543.0,3.07]
[1726837808574,0.8086,2543.5,2543.3,3.07]
[1726837808779,0.8086,2543.5,2543.3,3.46311]
[1726837809185,0.8086,2543.5,2543.3,3.07]
[1726837809385,1.2017,2543.5,2543.3,3.07]
[1726837809990,0.8086,2543.5,2543.2,0.39314]
[1726837810185,0.8086,2543.5,2542.9,4.1864]
[1726837810580,0.8086,2543.5,2543.2,0.39313]
[1726837810775,0.4128,2543.5,2543.4,0.39311]
[1726837810992,0.9824,2544.4,2543.6,0.39307]
[1726837810993,3.5813,2543.9,2543.6,0.39307]
[1726837811192,3.5813,2543.9,2543.2,4.76284]
[1726837811193,3.5813,2543.9,2543.5,3.78]
[1726837811484,3.2078,2543.9,2543.6,0.7788]
[1726837811686,3.2078,2543.9,2543.8,0.39305]
[1726837812091,3.2078,2543.9,2543.7,0.39306]
[1726837812299,3.2078,2543.9,2543.8,0.39305]
[1726837813084,0.393,2544.3,2544.0,0.39301]
[1726837813283,0.7931,2544.3,2544.0,0.39301]
[1726837813695,3.2078,2544.5,2544.2,3.78]
[1726837813896,0.593,2545.5,2544.4,4.19019]
[1726837813897,0.3928,2545.4,2544.4,4.19019]
[1726837814088,3.2078,2545.5,2545.2,0.39282]
[1726837814387,3.2078,2545.5,2545.0,4.557]
[1726837814891,0.805,2545.6,2545.0,4.557]
[1726837814892,3.60061,2545.4,2545.0,4.556]
[1726837815086,3.2078,2545.1,2544.4,3.60075]
[1726837815281,1.1683,2545.0,2544.8,0.39289]
[1726837815484,0.3929,2544.8,2544.3,0.7792]
[1726837815684,3.6007,2544.8,2544.3,0.3905]
[1726837816084,0.3929,2544.8,2544.3,0.3905]
[1726837816284,3.60069,2544.9,2544.4,0.39295]
[1726837816485,3.2078,2544.9,2544.4,0.39295]
[1726837816694,1.1683,2545.0,2544.5,3.78]
[1726837816895,1.1683,2545.0,2544.6,0.39292]
[1726837817098,1.1683,2545.0,2544.6,4.94892]
[1726837817394,1.1683,2545.0,2544.6,4.556]
[1726837817590,3.60064,2545.2,2544.8,3.78]
[1726837817791,3.2078,2545.2,2544.8,3.78]
[1726837817983,3.60064,2545.2,2544.8,8.336]
[1726837818183,3.2078,2545.2,2544.6,0.4082]
[1726837818390,0.3803,2545.4,2544.8,3.78]
[1726837818585,0.3803,2545.4,2544.9,0.3748]
[1726837818785,0.3803,2545.4,2545.1,4.17285]
[1726837818983,3.5954,2545.5,2545.2,0.39282]
[1726837819185,3.5954,2545.5,2545.3,4.1728]
[1726837819385,3.5954,2545.5,2545.4,0.3928]
[1726837819599,3.2078,2545.5,2545.4,0.3928]
[1726837819894,7.3288,2545.9,2545.4,3.9288]
[1726837820093,7.3288,2545.9,2545.7,3.78]
[1726837820287,0.3997,2546.0,2545.7,3.78]
[1726837820487,3.2078,2545.9,2545.7,3.78]
[1726837821089,3.2078,2545.9,2545.7,4.17275]
[1726837821284,3.2078,2545.9,2545.7,3.78]
[1726837822393,0.3997,2546.0,2545.7,3.78]
[1726837823195,3.2078,2545.9,2545.5,4.555]
[1726837823389,3.60053,2545.9,2545.4,3.78]
[1726837823590,3.2078,2545.6,2545.2,4.1675]
[1726837824895,3.60057,2545.6,2545.2,3.78]
[1726837825201,3.60058,2545.6,2545.2,3.78]
[1726837825390,3.2078,2545.3,2545.0,4.198]
[1726837825702,0.39285,2545.1,2544.9,3.78]
[1726837825901,0.39286,2545.0,2544.7,3.2078]
[1726837826099,4.7158,2545.2,2544.7,3.2078]
[1726837826100,1.186,2545.2,2544.7,3.2078]
[1726837826401,0.39285,2545.1,2544.7,3.2078]
[1726837826896,1.186,2545.2,2544.7,3.2078]
[1726837827107,0.39285,2545.1,2544.7,3.2078]
[1726837827290,0.39285,2545.1,2544.6,4.17292]
[1726837827493,3.2078,2545.0,2544.6,4.17292]
[1726837827690,3.2078,2545.0,2544.6,3.78]
[1726837827898,0.39289,2544.9,2544.6,3.78]
[1726837828101,3.2078,2545.0,2544.6,3.78]
[1726837828289,3.60067,2545.0,2544.6,4.17292]
[1726837829203,1.186,2545.2,2544.6,3.78]
[1726837829411,3.2078,2545.0,2544.6,3.78]
[1726837829697,3.2078,2545.0,2544.7,4.1729]
[1726837829891,1.17844,2545.2,2544.7,3.78]
[1726837830098,3.2078,2545.0,2544.8,0.39289]
[1726837830293,3.2078,2545.0,2544.9,0.39288]
[1726837830801,3.2078,2545.0,2544.7,3.78]
[1726837831005,3.2078,2544.9,2544.7,4.1729]
[1726837831195,3.2078,2544.9,2544.8,0.39289]
[1726837831391,3.5944,2545.2,2544.7,3.78]
[1726837831698,3.2078,2544.9,2544.7,3.78]
[1726837831889,0.4028,2545.1,2544.7,4.1729]
[1726837832090,3.2078,2545.0,2544.7,4.1729]
[1726837832305,3.60066,2545.0,2544.7,3.78]
[1726837832898,3.2078,2545.0,2544.7,4.17291]
[1726837833097,3.60067,2545.0,2544.7,3.78]
[1726837833394,0.39288,2544.9,2544.4,3.78]
[1726837833596,0.39288,2544.9,2544.5,0.39294]
[1726837833894,0.39289,2544.9,2544.5,0.39294]
[1726837834096,3.2078,2545.0,2544.5,0.39294]
[1726837834293,0.39291,2544.7,2544.4,4.17295]
[1726837834501,3.2078,2544.7,2544.4,4.17295]
[1726837834709,3.60071,2544.7,2544.4,4.17295]
[1726837835207,3.60071,2544.7,2544.4,3.78]
[1726837835506,0.39294,2544.6,2544.4,3.78]
[1726837835806,0.78233,2544.6,2544.4,3.78]
[1726837835999,0.3894,2544.6,2544.4,3.78]
[1726837836199,0.78233,2544.6,2544.4,3.78]
[1726837836407,0.3894,2544.6,2544.4,4.17294]
[1726837837200,0.3894,2544.6,2544.4,4.17295]
[1726837837710,7.72162,2545.3,2544.6,0.98232]
[1726837838003,4.121,2545.8,2545.3,0.39282]
[1726837838204,3.2078,2545.9,2545.3,0.39282]
[1726837838205,3.2078,2545.9,2545.7,3.78]
[1726837839402,3.928,2545.8,2545.5,3.78]
[1726837839614,0.39274,2545.8,2545.5,3.78]
[1726837839808,3.2078,2545.9,2545.5,3.78]
[1726837840108,3.2078,2545.9,2545.2,4.17283]
[1726837840109,0.39278,2545.6,2545.2,4.17283]
[1726837840294,3.2078,2545.7,2545.2,3.78]
[1726837840499,0.98184,2545.9,2545.2,3.78]
[1726837840697,0.39278,2545.6,2545.2,4.17282]
[1726837841107,3.2078,2545.7,2545.5,3.78]
[1726837841405,1.39336,2546.1,2545.5,3.78]
[1726837841406,3.2078,2545.6,2545.5,3.78]
[1726837841811,0.39275,2545.8,2545.5,3.78]
[1726837841812,3.60053,2545.9,2545.5,4.17278]
[1726837842110,3.60054,2545.9,2545.5,4.17278]
[1726837842312,3.2078,2545.6,2545.5,4.17278]
[1726837843204,3.60054,2545.9,2545.5,4.17278]
[1726837843710,0.39274,2545.8,2545.5,4.17278]
[1726837844802,0.39279,2545.5,2545.2,4.17283]
[1726837845001,0.3928,2545.4,2545.2,3.78]
[1726837845206,3.2078,2545.6,2545.2,4.17282]
[1726837845207,0.79089,2545.5,2545.2,4.17282]
[1726837845698,0.7909,2545.5,2545.2,4.17283]
[1726837845902,0.3981,2545.5,2545.2,3.78]
[1726837846101,0.39281,2545.4,2545.2,3.78]
[1726837846303,3.2078,2545.3,2544.9,4.1766]
[1726837846503,0.98214,2545.1,2544.6,4.1906]
[1726837846707,0.39289,2544.9,2544.7,0.3929]
[1726837846906,0.3929,2544.8,2544.6,3.78]
[1726837847314,0.78728,2544.9,2544.6,3.78]
[1726837847508,0.78728,2544.9,2544.6,4.17291]
[1726837847713,0.3929,2544.8,2544.6,3.78]
[1726837848308,3.2078,2544.7,2544.6,3.78]
[1726837848511,3.2078,2544.7,2544.6,4.17293]
[1726837849015,0.3944,2544.9,2544.6,4.17293]
[1726837849215,0.78729,2544.9,2544.7,0.39291]
[1726837849416,0.78729,2544.9,2544.6,4.17291]
[1726837849615,0.78729,2544.9,2544.7,0.39291]
[1726837850011,0.78729,2544.9,2544.6,4.17291]
[1726837850817,0.78728,2544.9,2544.6,3.78]
[1726837851018,0.78728,2544.9,2544.6,4.17292]
[1726837851318,3.2078,2545.0,2544.8,3.78]
[1726837851611,3.2078,2545.0,2544.9,0.4069]
[1726837851813,3.60066,2545.0,2544.9,0.4069]
[1726837852014,7.53026,2545.0,2544.9,0.4069]
[1726837852317,0.39291,2544.7,2544.6,3.78]
[1726837852507,3.2078,2545.0,2544.6,4.17292]
[1726837852712,0.39289,2544.9,2544.6,4.17292]
[1726837852917,0.39288,2544.9,2544.6,3.78]
[1726837853209,0.39291,2544.8,2544.6,3.78]
[1726837853416,0.39291,2544.8,2544.6,4.17292]
[1726837853613,0.80448,2544.9,2544.7,0.3929]
[1726837853918,4.60148,2545.3,2544.8,0.39288]
[1726837854114,3.2078,2544.9,2544.8,0.39288]
[1726837854511,3.2078,2544.9,2544.6,3.78]
[1726837854713,3.2078,2544.9,2544.8,0.39289]
[1726837855519,0.39288,2544.9,2544.6,3.78]
[1726837855724,0.39289,2544.9,2544.7,0.39291]
[1726837855924,0.39289,2544.9,2544.6,4.17291]
[1726837856119,0.39289,2544.9,2544.7,0.39291]
[1726837856428,3.2078,2545.0,2544.7,0.39291]
[1726837856718,0.39289,2544.9,2544.7,0.39291]
[1726837856922,3.2078,2545.0,2544.6,3.78]
[1726837857125,3.60071,2544.7,2544.5,0.4069]
[1726837857313,3.2078,2544.7,2544.5,0.4069]
[1726837857514,3.60071,2544.7,2544.5,0.4069]
[1726837857820,3.60072,2544.7,2544.5,0.4069]
[1726837858014,0.39293,2544.6,2544.5,0.4069]
[1726837858825,3.60072,2544.7,2544.5,0.79984]
[1726837859119,0.39293,2544.6,2544.5,0.79984]
[1726837859319,0.39293,2544.6,2544.5,0.4069]
[1726837860224,0.39293,2544.6,2544.5,0.79984]
[1726837860526,0.39293,2544.6,2544.5,0.4069]
[1726837860726,0.39293,2544.6,2544.5,0.79984]
[1726837860923,3.2078,2544.7,2544.5,0.79984]
[1726837861124,3.60072,2544.7,2544.5,0.79983]
[1726837861517,3.60072,2544.7,2544.3,3.78]
[1726837861518,0.39294,2544.5,2544.3,3.78]
[1726837861822,3.60076,2544.4,2544.3,3.78]
[1726837862327,3.60076,2544.4,2544.1,0.3723]
[1726837862328,0.39298,2544.3,2544.1,0.76529]
[1726837862524,0.39299,2544.2,2544.1,0.3723]
[1726837862717,0.39299,2544.2,2543.9,0.4093]
[1726837862718,3.9304,2544.2,2543.9,0.4093]
[1726837862921,3.60082,2544.0,2543.9,0.4093]
[1726837863226,0.39303,2543.9,2543.8,0.39304]
[1726837863418,3.60083,2544.0,2543.8,0.39304]
[1726837863622,3.60082,2544.0,2543.7,3.78]
[1726837863820,1.35684,2544.3,2543.8,0.98263]
[1726837863821,3.2078,2544.3,2543.8,0.98263]
[1726837864127,45.90337,2544.5,2544.2,3.78]
[1726837864128,4.51394,2544.5,2544.2,3.78]
[1726837864319,0.39296,2544.4,2544.3,0.389]
[1726837864518,0.39296,2544.4,2544.2,4.17298]
[1726837864519,0.98236,2544.5,2544.2,3.78]
[1726837864727,0.393,2544.1,2544.0,3.78]
[1726837865025,0.39302,2544.0,2543.8,0.39304]
[1726837865217,3.60082,2544.0,2543.8,0.39304]
[1726837865420,3.2078,2544.0,2543.9,0.39303]
[1726837865621,0.39301,2544.1,2543.9,0.39303]
[1726837865923,3.2078,2544.3,2544.0,0.39302]
[1726837866116,0.39301,2544.1,2543.9,0.39302]
[1726837866321,0.39302,2544.0,2543.8,0.39304]
[1726837866517,3.60082,2544.0,2543.8,0.39304]
[1726837867025,0.39303,2543.9,2543.7,4.56205]
[1726837867221,1.37568,2543.8,2543.7,4.169]
[1726837867425,0.39314,2543.2,2543.1,3.78]
[1726837867633,0.39314,2543.2,2542.5,1.53892045]
[1726837867634,0.39316,2543.1,2542.9,0.80408]
[1726837867924,0.39314,2543.2,2543.0,0.39317]
[1726837868328,0.39315,2543.2,2542.9,0.4109]
[1726837868523,0.39315,2543.2,2543.0,0.39317]
[1726837868724,3.2078,2543.4,2543.3,0.39313]
[1726837868935,3.60092,2543.4,2543.2,0.39314]
[1726837869632,3.2078,2543.4,2543.1,0.39315]
[1726837869823,0.39314,2543.3,2543.0,0.39316]
[1726837870026,0.39314,2543.3,2543.1,0.39315]
[1726837870331,4.19059,2543.4,2543.0,0.39316]
[1726837870638,0.39314,2543.2,2543.0,0.39316]
[1726837870822,0.39314,2543.3,2543.0,0.39316]
[1726837871023,4.19059,2543.4,2543.0,0.39316]
[1726837871231,3.2078,2543.1,2542.8,0.3936]
[1726837871536,0.39318,2543.0,2542.8,0.3936]
[1726837871724,0.39317,2543.0,2542.8,0.3936]
[1726837871926,3.2078,2543.1,2542.8,0.3936]
[1726837872125,0.39319,2542.9,2542.8,0.3936]
[1726837872736,3.2078,2543.1,2542.9,0.39319]
[1726837872933,3.2078,2543.1,2543.0,0.78467]
[1726837873429,3.60096,2543.1,2543.0,0.3915]
[1726837873834,3.2078,2543.1,2543.0,0.3915]
[1726837874231,3.2078,2543.1,2543.0,0.78467]
[1726837874537,3.2078,2543.1,2543.0,0.3915]
[1726837874734,3.2078,2543.1,2543.0,0.78467]
[1726837875036,0.4099,2543.6,2543.0,0.78467]
[1726837875037,0.382,2543.7,2543.0,4.3235]
[1726837875245,3.6009,2543.5,2543.1,0.39315]
[1726837875533,3.2078,2543.2,2542.2,0.98324]
[1726837875727,3.2078,2542.6,2542.2,0.3736]
[1726837875926,3.2078,2542.6,2542.3,0.4079]
[1726837876128,3.2078,2542.6,2542.1,0.39331]
[1726837876129,3.60104,2542.6,2542.1,0.39331]
[1726837876334,3.6046,2542.5,2542.1,0.39331]
[1726837876528,3.6046,2542.5,2542.2,0.39329]
[1726837876731,3.6046,2542.5,2541.9,0.7815]
[1726837876732,3.6046,2542.5,2542.1,0.3933]
[1726837877041,3.6176,2542.9,2542.4,3.78]
[1726837877229,3.2078,2542.6,2542.5,0.4079]
[1726837877431,3.6176,2542.9,2542.5,0.4079]
[1726837877629,0.3932,2542.8,2542.5,0.4079]
[1726837877938,3.6176,2542.9,2542.5,0.4079]
[1726837878530,3.2078,2542.9,2542.5,0.4079]
[1726837878840,3.2078,2542.9,2542.6,0.3828]
[1726837881441,0.3968,2543.1,2542.6,0.3828]
[1726837881637,0.78996,2543.1,2542.6,0.3828]
[1726837881938,0.3968,2543.1,2542.6,0.3828]
[1726837882140,3.2078,2543.2,2543.0,3.78]
[1726837882329,3.2078,2543.5,2543.1,0.3917]
[1726837882536,3.2078,2543.2,2543.1,0.3917]
[1726837883231,3.2078,2543.2,2542.6,0.3828]
[1726837883232,7.1398,2543.2,2542.6,0.3828]
[1726837883434,3.2078,2542.9,2542.6,0.7745]
[1726837884140,3.2078,2542.9,2542.6,1.16773]
[1726837884334,0.3845,2543.1,2542.7,0.39322]
[1726837884530,3.60096,2543.2,2542.6,0.7745]
[1726837884739,3.60096,2543.2,2542.7,0.39322]
[1726837884939,3.2078,2543.2,2542.6,0.7745]
[1726837885240,3.60099,2542.9,2542.6,0.7745]
[1726837885538,0.39321,2542.8,2542.6,0.7745]
[1726837885737,0.39322,2542.7,2542.4,4.198]
[1726837885939,3.2078,2542.6,2542.3,0.3996]
[1726837886146,3.2078,2542.6,2542.4,0.39326]
[1726837886536,3.2078,2542.6,2542.5,0.39325]
[1726837886847,3.60097,2543.0,2542.5,0.39325]
[1726837887142,0.39319,2542.9,2542.4,0.39326]
[1726837887332,0.39319,2542.9,2542.3,0.3996]
[1726837887333,3.2078,2542.7,2542.3,0.3996]
[1726837887534,3.2078,2542.7,2542.3,0.79287]
[1726837887738,3.60102,2542.7,2542.3,0.79287]
[1726837887936,3.2078,2542.7,2542.3,0.79287]
[1726837888141,3.60102,2542.7,2542.3,0.79287]
[1726837888333,3.60102,2542.7,2542.3,0.39328]
[1726837888334,0.378,2542.6,2542.3,0.39328]
[1726837888536,0.77124,2542.6,2542.2,0.76578]
[1726837888952,3.2078,2542.4,2542.2,0.76578]
[1726837889146,3.2078,2542.4,2542.2,0.3725]
[1726837889645,0.39325,2542.5,2542.2,0.3725]
[1726837890235,3.2078,2542.4,2542.2,0.3725]
[1726837890631,0.378,2542.6,2542.2,0.3725]
[1726837891247,3.2078,2542.4,2542.3,3.07]
[1726837891543,0.39325,2542.5,2542.3,3.07]
[1726837891745,0.39324,2542.6,2542.3,3.07]
[1726837892040,3.2078,2542.7,2542.3,3.07]
[1726837892041,3.2078,2542.7,2542.3,3.46327]
[1726837892243,3.2078,2542.7,2542.2,0.3725]
[1726837892453,3.60108,2542.4,2542.2,0.3725]
[1726837892750,3.60107,2542.4,2542.2,0.3725]
[1726837892946,3.2078,2542.4,2542.2,0.3725]
[1726837893146,3.60107,2542.4,2542.2,0.3725]
[1726837894138,3.60107,2542.4,2542.0,0.4103]
[1726837894139,3.2078,2542.4,2542.0,0.4103]
[1726837894341,0.4046,2542.3,2542.0,0.4103]
[1726837894944,3.2078,2542.1,2541.9,0.39333]
[1726837895339,3.2078,2542.1,2541.8,0.394]
[1726837895546,3.2078,2542.1,2541.9,0.39334]
[1726837895738,3.2078,2542.1,2541.8,0.394]
[1726837895939,0.39334,2541.9,2541.8,0.394]
[1726837896254,9.78,2541.9,2541.2,0.4094]
[1726837896457,3.2078,2541.8,2541.2,0.7851]
[1726837896746,3.2078,2542.1,2541.4,3.78]
[1726837896940,0.9832,2542.4,2541.5,0.4038]
[1726837896941,3.2078,2541.8,2541.5,0.4038]
[1726837898051,3.6116,2541.8,2540.9,0.39349]
[1726837898352,3.6116,2541.8,2541.0,0.7795]
[1726837898353,3.2078,2541.3,2541.0,0.7795]
[1726837898942,3.2078,2541.3,2541.1,3.9352]
[1726837899459,3.2078,2541.3,2541.0,0.7795]
[1726837902055,3.2078,2541.3,2540.6,6.9878]
[1726837902252,3.2078,2541.3,2540.8,0.3935]
[1726837902752,3.2078,2541.3,2540.7,0.7685]
[1726837902943,3.2078,2541.3,2540.8,0.3935]
[1726837903356,3.2078,2541.2,2540.7,0.7685]
[1726837903545,3.2078,2540.8,2540.7,0.7685]
[1726837904052,3.2078,2540.8,2540.7,4.7045]
[1726837904356,3.617,2541.2,2540.7,4.7045]
[1726837904553,3.617,2541.2,2540.7,1.16202]
[1726837904748,3.617,2541.2,2540.7,1.16203]
[1726837904944,4.01046,2541.2,2540.7,0.7685]
[1726837905144,0.39352,2540.8,2540.4,3.78]
[1726837905353,0.4092,2540.7,2540.3,0.39358]
[1726837905553,0.4092,2540.7,2540.4,0.39356]
[1726837905756,0.4092,2540.7,2540.1,0.7924]
[1726837905757,3.2078,2540.8,2540.1,0.7924]
[1726837905967,3.2078,2540.8,2540.6,0.39354]
[1726837906147,3.2078,2540.8,2540.7,0.7645]
[1726837906547,3.2078,2540.8,2540.7,4.7005]
[1726837906754,3.60132,2540.8,2540.0,11.3831188]
[1726837906959,3.2078,2540.8,2540.3,0.39359]
[1726837907157,3.2078,2540.8,2540.2,0.39361]
[1726837907363,0.39355,2540.6,2540.1,0.7645]
[1726837907550,3.2078,2540.5,2540.1,0.7645]
[1726837907953,0.39358,2540.4,2540.1,0.7645]
[1726837908161,0.39358,2540.4,2540.0,4.2]
[1726837908162,0.3764,2540.4,2540.0,4.2]
[1726837908460,0.39362,2540.1,2540.0,4.2]
[1726837908662,3.2078,2540.2,2540.0,4.2]
[1726837908858,3.9368,2540.1,2540.0,4.2]
[1726837909059,3.2078,2540.2,2540.0,4.2]
[1726837909357,0.3764,2540.4,2540.0,4.2]
[1726837909563,0.3764,2540.4,2540.1,1.16931]
[1726837909564,3.2078,2540.3,2540.1,1.16931]
[1726837909866,3.2078,2540.3,2540.0,4.59363]
[1726837910059,3.2078,2540.3,2540.0,4.2]
[1726837910466,3.9873,2540.3,2540.0,4.2]
[1726837910668,0.39361,2540.2,2540.0,4.2]
[1726837910960,0.39362,2540.1,2540.0,4.2]
[1726837911271,4.33042,2540.1,2540.0,4.2]
[1726837911570,10.33042,2540.1,2540.0,4.2]
[1726837911781,0.39362,2540.1,2540.0,4.2]
[1726837912265,3.5937,2540.3,2540.0,4.2]
[1726837912657,3.9873,2540.3,2540.0,4.2]